[Event "*** Titled Tuesday Blitz"]
[Site "Chess.com"]
[Date "2020.05.19"]
[Round "2"]
[White "Quaternitychess"]
[Black "Aikiigm"]
[Result "1-0"]
[WhiteElo "2790"]
[BlackElo "2509"]
[TimeControl "180+1"]
[EndTime "12:15:40 PDT"]
[Termination "Quaternitychess won by resignation"]

1. e4 {[%clk 0:03:00.9]} 1... Nf6 {[%clk 0:02:52.6]} 2. e5 {[%clk 0:02:59.6]}
2... Nd5 {[%clk 0:02:49.7]} 3. d4 {[%clk 0:03:00.5]} 3... d6 {[%clk 0:02:47.2]}
4. c4 {[%clk 0:03:00.9]} 4... Nb6 {[%clk 0:02:47]} 5. f4 {[%clk 0:03:01.5]} 5...
dxe5 {[%clk 0:02:44.3]} 6. fxe5 {[%clk 0:03:02.4]} 6... Nc6 {[%clk 0:02:44.5]}
7. Be3 {[%clk 0:03:02.5]} 7... Bf5 {[%clk 0:02:44.5]} 8. Nc3 {[%clk 0:03:03.1]}
8... e6 {[%clk 0:02:44.8]} 9. Nf3 {[%clk 0:03:03.7]} 9... Be7 {[%clk 0:02:45]}
10. d5 {[%clk 0:03:03.1]} 10... exd5 {[%clk 0:02:43.9]} 11. cxd5 {[%clk
0:03:04]} 11... Nb4 {[%clk 0:02:41.8]} 12. Nd4 {[%clk 0:03:04.4]} 12... Bd7
{[%clk 0:02:36.7]} 13. Qf3 {[%clk 0:03:03.6]} 13... c5 {[%clk 0:02:15.7]} 14.
Nf5 {[%clk 0:02:52.7]} 14... Nc2+ {[%clk 0:02:10.3]} 15. Kd2 {[%clk 0:02:46.5]}
15... Bxf5 {[%clk 0:02:09.9]} 16. Qxf5 {[%clk 0:02:44]} 16... Nxa1 {[%clk
0:01:26.3]} 17. Bb5+ {[%clk 0:02:34.4]} 17... Kf8 {[%clk 0:01:24.6]} 18. Rf1
{[%clk 0:02:01.3]} 18... f6 {[%clk 0:01:22.5]} 19. exf6 {[%clk 0:01:49.1]} 19...
Bxf6 {[%clk 0:01:20.5]} 20. Bxc5+ {[%clk 0:01:48.4]} 20... Kf7 {[%clk
0:01:15.3]} 21. Qe6+ {[%clk 0:01:47.1]} 21... Kg6 {[%clk 0:01:15.6]} 22. Bd3+
{[%clk 0:01:45.8]} 22... Kh6 {[%clk 0:01:13.3]} 23. Be3+ {[%clk 0:01:44.8]} 1-0

[Event "*** Titled Tuesday Blitz"]
[Site "Chess.com"]
[Date "2020.05.19"]
[Round "2"]
[White "SHIVACalypso"]
[Black "stolencandy13"]
[Result "0-1"]
[WhiteElo "2294"]
[BlackElo "2553"]
[TimeControl "180+1"]
[EndTime "12:15:46 PDT"]
[Termination "stolencandy13 won by resignation"]

1. Nf3 {[%clk 0:03:00.9]} 1... f5 {[%clk 0:02:58.7]} 2. c4 {[%clk 0:03:01]} 2...
e6 {[%clk 0:02:58]} 3. g3 {[%clk 0:03:01.2]} 3... Nf6 {[%clk 0:02:55.9]} 4. Bg2
{[%clk 0:03:01.6]} 4... Be7 {[%clk 0:02:53.3]} 5. Nc3 {[%clk 0:03:00.2]} 5...
O-O {[%clk 0:02:53.2]} 6. O-O {[%clk 0:02:59.6]} 6... d6 {[%clk 0:02:46.1]} 7.
d4 {[%clk 0:02:55]} 7... Qe8 {[%clk 0:02:43.2]} 8. Qc2 {[%clk 0:02:45.7]} 8...
Qh5 {[%clk 0:02:40.5]} 9. Rb1 {[%clk 0:02:27.9]} 9... a5 {[%clk 0:02:36.7]} 10.
a3 {[%clk 0:02:27.5]} 10... c6 {[%clk 0:02:26.1]} 11. b4 {[%clk 0:02:25.8]}
11... axb4 {[%clk 0:02:22.8]} 12. axb4 {[%clk 0:02:26.7]} 12... Nbd7 {[%clk
0:02:23.3]} 13. b5 {[%clk 0:02:18.3]} 13... c5 {[%clk 0:02:21.4]} 14. Bb2 {[%clk
0:01:56.2]} 14... cxd4 {[%clk 0:02:18.1]} 15. Nxd4 {[%clk 0:01:56.4]} 15... Nb6
{[%clk 0:02:10.2]} 16. Qb3 {[%clk 0:01:46.1]} 16... Qf7 {[%clk 0:02:10]} 17. Nc2
{[%clk 0:01:37.2]} 17... Nfd7 {[%clk 0:02:04.5]} 18. Ba3 {[%clk 0:01:30.4]}
18... Ne5 {[%clk 0:02:01.8]} 19. Ne3 {[%clk 0:01:26.8]} 19... Nbxc4 {[%clk
0:02:01]} 20. Nxc4 {[%clk 0:01:25.5]} 20... Nxc4 {[%clk 0:02:00.8]} 21. Qxc4
{[%clk 0:01:15.9]} 21... Rxa3 {[%clk 0:02:00.2]} 22. Rfd1 {[%clk 0:01:12.6]}
22... Kh8 {[%clk 0:01:53.5]} 23. Na4 {[%clk 0:01:01]} 23... d5 {[%clk
0:01:51.1]} 24. Qc2 {[%clk 0:01:00.2]} 24... f4 {[%clk 0:01:49.2]} 25. Nb6
{[%clk 0:00:56.2]} 25... fxg3 {[%clk 0:01:46.3]} 26. fxg3 {[%clk 0:00:57.1]}
26... Qf2+ {[%clk 0:01:40.2]} 27. Kh1 {[%clk 0:00:57.4]} 27... Qxb6 {[%clk
0:01:39.2]} 0-1

[Event "*** Titled Tuesday Blitz"]
[Site "Chess.com"]
[Date "2020.05.19"]
[Round "2"]
[White "rekosheten"]
[Black "mamonika"]
[Result "1-0"]
[WhiteElo "2365"]
[BlackElo "1966"]
[TimeControl "180+1"]
[EndTime "12:15:51 PDT"]
[Termination "rekosheten won by resignation"]

1. e4 {[%clk 0:03:00.9]} 1... c5 {[%clk 0:02:59.8]} 2. Nc3 {[%clk 0:02:59.7]}
2... e6 {[%clk 0:02:59.5]} 3. f4 {[%clk 0:02:56.5]} 3... Nc6 {[%clk 0:02:58.3]}
4. Nf3 {[%clk 0:02:55.8]} 4... d5 {[%clk 0:02:57]} 5. Bb5 {[%clk 0:02:55.7]}
5... Nf6 {[%clk 0:02:51]} 6. Qe2 {[%clk 0:02:51.1]} 6... d4 {[%clk 0:02:43]} 7.
Bxc6+ {[%clk 0:02:35.8]} 7... bxc6 {[%clk 0:02:41.6]} 8. Nd1 {[%clk 0:02:36.7]}
8... Be7 {[%clk 0:02:28.9]} 9. Ne5 {[%clk 0:02:33]} 9... Qb6 {[%clk 0:02:27]}
10. Nf2 {[%clk 0:02:16.7]} 10... Ba6 {[%clk 0:02:26.2]} 11. d3 {[%clk
0:02:16.8]} 11... O-O {[%clk 0:02:12.4]} 12. O-O {[%clk 0:02:16.3]} 12... Rfd8
{[%clk 0:01:55.5]} 13. b3 {[%clk 0:02:13.8]} 13... Bd6 {[%clk 0:01:41.5]} 14.
Nxf7 {[%clk 0:02:09.4]} 14... Kxf7 {[%clk 0:01:39]} 15. e5 {[%clk 0:02:09.7]}
15... Nd5 {[%clk 0:01:33.8]} 16. exd6 {[%clk 0:02:09]} 16... Rxd6 {[%clk
0:01:34.7]} 17. Ne4 {[%clk 0:02:06.6]} 17... Rd7 {[%clk 0:01:30.8]} 18. Ng5+
{[%clk 0:02:05.3]} 18... Kf8 {[%clk 0:01:13.8]} 19. Qxe6 {[%clk 0:02:01.5]}
19... Nf6 {[%clk 0:01:10.2]} 20. Nxh7+ {[%clk 0:01:54.4]} 20... Nxh7 {[%clk
0:01:08.1]} 21. Qxd7 {[%clk 0:01:55.1]} 21... Re8 {[%clk 0:01:02.9]} 22. f5
{[%clk 0:01:51.9]} 22... Nf6 {[%clk 0:01:02.9]} 23. Qd6+ {[%clk 0:01:49.9]}
23... Kg8 {[%clk 0:01:00.6]} 24. Ba3 {[%clk 0:01:42.3]} 24... Qd8 {[%clk
0:00:45.7]} 1-0

[Event "*** Titled Tuesday Blitz"]
[Site "Chess.com"]
[Date "2020.05.19"]
[Round "2"]
[White "KyronGriffith"]
[Black "Klavdia_Nik"]
[Result "1-0"]
[WhiteElo "2380"]
[BlackElo "2034"]
[TimeControl "180+1"]
[EndTime "12:15:52 PDT"]
[Termination "KyronGriffith won by resignation"]

1. e4 {[%clk 0:03:00.9]} 1... e5 {[%clk 0:02:53.2]} 2. Nf3 {[%clk 0:03:01.4]}
2... Nc6 {[%clk 0:02:53.2]} 3. Nc3 {[%clk 0:03:01.9]} 3... Nf6 {[%clk
0:02:52.3]} 4. d4 {[%clk 0:03:02.6]} 4... exd4 {[%clk 0:02:50.6]} 5. Nxd4 {[%clk
0:03:03.5]} 5... d6 {[%clk 0:02:48.8]} 6. Be3 {[%clk 0:03:01.1]} 6... Bd7 {[%clk
0:02:46.9]} 7. f3 {[%clk 0:03:01.1]} 7... Be7 {[%clk 0:02:46.2]} 8. Qd2 {[%clk
0:03:01.6]} 8... a6 {[%clk 0:02:45.4]} 9. O-O-O {[%clk 0:03:02]} 9... b5 {[%clk
0:02:44.3]} 10. g4 {[%clk 0:02:58.9]} 10... Ne5 {[%clk 0:02:29.1]} 11. Qf2
{[%clk 0:02:25.2]} 11... Nc4 {[%clk 0:02:00.1]} 12. Bxc4 {[%clk 0:02:22.6]}
12... bxc4 {[%clk 0:02:00.5]} 13. Qe2 {[%clk 0:02:13.6]} 13... Bb5 {[%clk
0:01:24.8]} 14. a4 {[%clk 0:02:11.8]} 14... Bd7 {[%clk 0:01:22.7]} 15. Qxc4
{[%clk 0:02:11.8]} 15... c5 {[%clk 0:01:09.7]} 16. Nf5 {[%clk 0:02:07.3]} 16...
Be6 {[%clk 0:01:04]} 17. Nxg7+ {[%clk 0:02:06.6]} 17... Kd7 {[%clk 0:00:45.6]}
18. Nxe6 {[%clk 0:02:07]} 18... fxe6 {[%clk 0:00:45.9]} 19. e5 {[%clk
0:02:05.8]} 19... Ne8 {[%clk 0:00:41.3]} 20. exd6 {[%clk 0:02:02.7]} 20... Nxd6
{[%clk 0:00:23.7]} 21. Ne4 {[%clk 0:02:01.4]} 1-0

[Event "*** Titled Tuesday Blitz"]
[Site "Chess.com"]
[Date "2020.05.19"]
[Round "2"]
[White "ASVZ"]
[Black "Szczor"]
[Result "1/2-1/2"]
[WhiteElo "2370"]
[BlackElo "2632"]
[TimeControl "180+1"]
[EndTime "12:15:55 PDT"]
[Termination "Game drawn by repetition"]

1. e4 {[%clk 0:03:00.9]} 1... c5 {[%clk 0:01:54.7]} 2. c3 {[%clk 0:03:00.7]}
2... d5 {[%clk 0:01:53.4]} 3. exd5 {[%clk 0:03:00.8]} 3... Qxd5 {[%clk
0:01:54.3]} 4. d4 {[%clk 0:03:01.4]} 4... Nc6 {[%clk 0:01:53.7]} 5. Nf3 {[%clk
0:03:01.6]} 5... Bg4 {[%clk 0:01:54.3]} 6. Be2 {[%clk 0:03:01.2]} 6... e6 {[%clk
0:01:54.4]} 7. Na3 {[%clk 0:03:00]} 7... Nf6 {[%clk 0:01:54.1]} 8. Be3 {[%clk
0:02:59.5]} 8... cxd4 {[%clk 0:01:53.7]} 9. Nb5 {[%clk 0:02:59.5]} 9... Qd7
{[%clk 0:01:54.2]} 10. Nbxd4 {[%clk 0:02:59.4]} 10... Nxd4 {[%clk 0:01:53.7]}
11. Bxd4 {[%clk 0:03:00.3]} 11... Bxf3 {[%clk 0:01:31.2]} 12. Bxf3 {[%clk
0:03:00]} 12... Be7 {[%clk 0:01:31.7]} 13. Bxf6 {[%clk 0:02:44.3]} 13... Bxf6
{[%clk 0:01:31.5]} 14. Qxd7+ {[%clk 0:02:43.6]} 14... Kxd7 {[%clk 0:01:32.4]}
15. Bxb7 {[%clk 0:02:43.5]} 15... Rab8 {[%clk 0:01:28.7]} 16. O-O-O+ {[%clk
0:02:42.5]} 16... Kc7 {[%clk 0:01:29.1]} 17. Be4 {[%clk 0:02:40.8]} 17... g6
{[%clk 0:01:26.7]} 18. h4 {[%clk 0:02:37.3]} 18... h5 {[%clk 0:01:25.6]} 19. g3
{[%clk 0:02:37.4]} 19... Rhd8 {[%clk 0:01:25.3]} 20. Rxd8 {[%clk 0:02:35.3]}
20... Rxd8 {[%clk 0:01:24.9]} 21. Rd1 {[%clk 0:02:35.1]} 21... Rxd1+ {[%clk
0:01:23.6]} 22. Kxd1 {[%clk 0:02:36]} 22... Be7 {[%clk 0:01:24.2]} 23. Ke2
{[%clk 0:02:34.1]} 23... f5 {[%clk 0:01:24.5]} 24. Bc2 {[%clk 0:02:31.7]} 24...
g5 {[%clk 0:01:22.1]} 25. hxg5 {[%clk 0:02:30.8]} 25... Bxg5 {[%clk 0:01:23]}
26. f4 {[%clk 0:02:30]} 26... Bf6 {[%clk 0:01:21]} 27. Ke3 {[%clk 0:02:12.4]}
27... Kd6 {[%clk 0:01:19.8]} 28. Bd1 {[%clk 0:02:12.1]} 28... h4 {[%clk
0:01:19.5]} 29. gxh4 {[%clk 0:02:11.6]} 29... Bxh4 {[%clk 0:01:20.4]} 30. b4
{[%clk 0:02:10.3]} 30... Be1 {[%clk 0:01:18.4]} 31. Kd3 {[%clk 0:02:08.9]} 31...
Bg3 {[%clk 0:01:18.5]} 32. Ke3 {[%clk 0:02:06.5]} 32... Be1 {[%clk 0:01:18.5]}
33. Kd3 {[%clk 0:01:47.5]} 33... Bg3 {[%clk 0:01:18.4]} 34. Ke3 {[%clk 0:01:43]}
34... Be1 {[%clk 0:01:18.2]} 1/2-1/2

[Event "*** Titled Tuesday Blitz"]
[Site "Chess.com"]
[Date "2020.05.19"]
[Round "2"]
[White "VolodymyrMolyboha"]
[Black "Lubov_Gordyk"]
[Result "0-1"]
[WhiteElo "2412"]
[BlackElo "2652"]
[TimeControl "180+1"]
[EndTime "12:16:06 PDT"]
[Termination "Lubov_Gordyk won by resignation"]

1. e4 {[%clk 0:03:00.9]} 1... g6 {[%clk 0:02:58.6]} 2. d4 {[%clk 0:02:58.8]}
2... Bg7 {[%clk 0:02:58.5]} 3. Nc3 {[%clk 0:02:58.9]} 3... d6 {[%clk 0:02:58.4]}
4. g3 {[%clk 0:02:58.7]} 4... Nf6 {[%clk 0:02:54.4]} 5. Bg2 {[%clk 0:02:58.2]}
5... O-O {[%clk 0:02:53.8]} 6. Nge2 {[%clk 0:02:58.3]} 6... e5 {[%clk
0:02:53.1]} 7. h3 {[%clk 0:02:57.6]} 7... exd4 {[%clk 0:02:50.2]} 8. Nxd4 {[%clk
0:02:56.9]} 8... Re8 {[%clk 0:02:49.8]} 9. O-O {[%clk 0:02:56.2]} 9... Bd7
{[%clk 0:02:48.8]} 10. Re1 {[%clk 0:02:55.1]} 10... Qc8 {[%clk 0:02:45.9]} 11.
g4 {[%clk 0:02:54.3]} 11... h6 {[%clk 0:02:41.6]} 12. Bf4 {[%clk 0:02:52.4]}
12... Nc6 {[%clk 0:02:39.4]} 13. Nde2 {[%clk 0:02:50.5]} 13... Ne5 {[%clk
0:02:37.2]} 14. Ng3 {[%clk 0:02:47.2]} 14... a5 {[%clk 0:02:29.8]} 15. a4 {[%clk
0:02:43.9]} 15... Kh7 {[%clk 0:02:27.2]} 16. Qd2 {[%clk 0:02:35.3]} 16... Bc6
{[%clk 0:02:24.3]} 17. b3 {[%clk 0:02:31.9]} 17... Qd7 {[%clk 0:02:21.2]} 18.
Rad1 {[%clk 0:02:29.9]} 18... Rad8 {[%clk 0:02:19.4]} 19. Be3 {[%clk 0:02:19.9]}
19... Qc8 {[%clk 0:02:08.8]} 20. f4 {[%clk 0:02:17.5]} 20... Ned7 {[%clk
0:02:07.6]} 21. Bd4 {[%clk 0:02:17.1]} 21... Ng8 {[%clk 0:02:01.2]} 22. Bxg7
{[%clk 0:02:15.3]} 22... Kxg7 {[%clk 0:02:01.3]} 23. Qd4+ {[%clk 0:02:15.5]}
23... Kh7 {[%clk 0:01:59.2]} 24. Nd5 {[%clk 0:02:10.2]} 24... b6 {[%clk
0:01:44.9]} 25. c4 {[%clk 0:01:59.8]} 25... Nc5 {[%clk 0:01:43]} 26. Qc3 {[%clk
0:01:58.6]} 26... Bxd5 {[%clk 0:01:40]} 27. exd5 {[%clk 0:01:57.7]} 27... Qd7
{[%clk 0:01:38.7]} 28. Ne4 {[%clk 0:01:54.7]} 28... Nxe4 {[%clk 0:01:34.9]} 29.
Bxe4 {[%clk 0:01:54.7]} 29... Re7 {[%clk 0:01:31.5]} 30. f5 {[%clk 0:01:47.6]}
30... Re5 {[%clk 0:01:21.9]} 31. Qd3 {[%clk 0:01:42.9]} 31... g5 {[%clk
0:01:10.9]} 32. f6+ {[%clk 0:01:36.1]} 32... Kh8 {[%clk 0:01:10.5]} 33. Bf5
{[%clk 0:01:36.3]} 33... Qe8 {[%clk 0:01:10]} 34. h4 {[%clk 0:01:34.5]} 34...
Rxe1+ {[%clk 0:01:08.6]} 0-1

[Event "*** Titled Tuesday Blitz"]
[Site "Chess.com"]
[Date "2020.05.19"]
[Round "2"]
[White "plumalka"]
[Black "yarosavich"]
[Result "1-0"]
[WhiteElo "2488"]
[BlackElo "2686"]
[TimeControl "180+1"]
[EndTime "12:16:09 PDT"]
[Termination "plumalka won by resignation"]

1. e4 {[%clk 0:03:00.9]} 1... e5 {[%clk 0:02:59.4]} 2. Nf3 {[%clk 0:03:00.9]}
2... Nc6 {[%clk 0:02:59.9]} 3. Nc3 {[%clk 0:03:01.3]} 3... Nf6 {[%clk
0:02:59.4]} 4. a3 {[%clk 0:03:01.7]} 4... d5 {[%clk 0:02:53.5]} 5. Bb5 {[%clk
0:03:01]} 5... d4 {[%clk 0:02:29.5]} 6. Ne2 {[%clk 0:03:00.6]} 6... Bd6 {[%clk
0:02:30.1]} 7. d3 {[%clk 0:02:59.2]} 7... O-O {[%clk 0:02:28.6]} 8. O-O {[%clk
0:02:58.2]} 8... Ne7 {[%clk 0:02:27.1]} 9. c3 {[%clk 0:02:49.1]} 9... c5 {[%clk
0:02:18.9]} 10. Nh4 {[%clk 0:02:45.7]} 10... a6 {[%clk 0:02:01.2]} 11. Bc4
{[%clk 0:02:41]} 11... b5 {[%clk 0:02:01.7]} 12. Ba2 {[%clk 0:02:40.2]} 12...
Be6 {[%clk 0:01:56.7]} 13. Bxe6 {[%clk 0:02:33.9]} 13... fxe6 {[%clk 0:01:57]}
14. f4 {[%clk 0:02:32.4]} 14... exf4 {[%clk 0:01:47.3]} 15. Nxf4 {[%clk
0:02:27.8]} 15... Qd7 {[%clk 0:01:45.6]} 16. Qb3 {[%clk 0:02:10.4]} 16... c4
{[%clk 0:01:46]} 17. dxc4 {[%clk 0:02:08.7]} 17... Nxe4 {[%clk 0:01:46.4]} 18.
cxb5 {[%clk 0:02:03]} 18... Nc5 {[%clk 0:01:46.1]} 19. Qd1 {[%clk 0:01:54.7]}
19... dxc3 {[%clk 0:01:30.8]} 20. bxc3 {[%clk 0:01:48.2]} 20... axb5 {[%clk
0:01:18.5]} 21. Be3 {[%clk 0:01:43.2]} 21... Qc6 {[%clk 0:01:04.2]} 22. Qg4
{[%clk 0:01:39.5]} 22... Qe4 {[%clk 0:00:52.4]} 23. Rae1 {[%clk 0:01:38.8]}
23... Nd3 {[%clk 0:00:52]} 24. Bd4 {[%clk 0:01:28.3]} 1-0

[Event "*** Titled Tuesday Blitz"]
[Site "Chess.com"]
[Date "2020.05.19"]
[Round "2"]
[White "Zmof"]
[Black "Glidzhian_Gor"]
[Result "0-1"]
[WhiteElo "2255"]
[BlackElo "2460"]
[TimeControl "180+1"]
[EndTime "12:16:09 PDT"]
[Termination "Glidzhian_Gor won by resignation"]

1. e4 {[%clk 0:03:00.9]} 1... c5 {[%clk 0:02:59.8]} 2. Nf3 {[%clk 0:02:59.9]}
2... d6 {[%clk 0:02:58.9]} 3. Bb5+ {[%clk 0:02:59.4]} 3... Bd7 {[%clk
0:02:56.3]} 4. Bxd7+ {[%clk 0:02:58.9]} 4... Nxd7 {[%clk 0:02:57.2]} 5. O-O
{[%clk 0:02:59.1]} 5... g6 {[%clk 0:02:57.2]} 6. c4 {[%clk 0:02:58.5]} 6... Bg7
{[%clk 0:02:57.9]} 7. Nc3 {[%clk 0:02:58.8]} 7... Ngf6 {[%clk 0:02:58]} 8. d4
{[%clk 0:02:59.1]} 8... O-O {[%clk 0:02:57.4]} 9. d5 {[%clk 0:02:55.2]} 9... a6
{[%clk 0:02:55.5]} 10. a4 {[%clk 0:02:53.8]} 10... Rb8 {[%clk 0:02:54.1]} 11. a5
{[%clk 0:02:52.9]} 11... Ng4 {[%clk 0:02:52.3]} 12. h3 {[%clk 0:02:51.5]} 12...
Nge5 {[%clk 0:02:52.4]} 13. Nxe5 {[%clk 0:02:51.9]} 13... Nxe5 {[%clk
0:02:53.3]} 14. Qe2 {[%clk 0:02:48.6]} 14... b6 {[%clk 0:02:53.3]} 15. axb6
{[%clk 0:02:47.1]} 15... Rxb6 {[%clk 0:02:52.5]} 16. f4 {[%clk 0:02:46.2]} 16...
Nd7 {[%clk 0:02:52.4]} 17. Be3 {[%clk 0:02:30.8]} 17... Qb8 {[%clk 0:02:52.2]}
18. Na4 {[%clk 0:02:30.4]} 18... Rb3 {[%clk 0:02:44.6]} 19. Kh1 {[%clk
0:02:24.7]} 19... Nb6 {[%clk 0:02:43.2]} 20. Nxb6 {[%clk 0:02:13.4]} 20... Qxb6
{[%clk 0:02:31]} 21. Rfb1 {[%clk 0:02:05.9]} 21... Rb8 {[%clk 0:02:30.2]} 22.
Ra2 {[%clk 0:02:04.6]} 22... Bxb2 {[%clk 0:02:14.4]} 23. Qc2 {[%clk 0:01:54.3]}
23... Bf6 {[%clk 0:02:01.6]} 24. Rxb3 {[%clk 0:01:20.4]} 24... Qxb3 {[%clk
0:02:02.5]} 25. e5 {[%clk 0:01:06]} 25... Qxe3 {[%clk 0:01:33]} 26. exf6 {[%clk
0:01:04.3]} 26... exf6 {[%clk 0:01:33.9]} 27. Rxa6 {[%clk 0:00:57.4]} 27... Qxf4
{[%clk 0:01:33]} 28. Qe2 {[%clk 0:00:48.2]} 28... Rb1+ {[%clk 0:01:30]} 0-1

[Event "*** Titled Tuesday Blitz"]
[Site "Chess.com"]
[Date "2020.05.19"]
[Round "2"]
[White "mamey78"]
[Black "WiktoriaPOL"]
[Result "1-0"]
[WhiteElo "2371"]
[BlackElo "2008"]
[TimeControl "180+1"]
[EndTime "12:16:11 PDT"]
[Termination "mamey78 won by resignation"]

1. e4 {[%clk 0:03:00.9]} 1... c5 {[%clk 0:02:59.3]} 2. Nf3 {[%clk 0:03:00.1]}
2... g6 {[%clk 0:02:59.1]} 3. c3 {[%clk 0:02:59.5]} 3... d5 {[%clk 0:02:56.9]}
4. exd5 {[%clk 0:02:58.6]} 4... Qxd5 {[%clk 0:02:56.7]} 5. d4 {[%clk 0:02:58.9]}
5... cxd4 {[%clk 0:02:56.9]} 6. cxd4 {[%clk 0:02:54.6]} 6... Nc6 {[%clk
0:02:56.2]} 7. Nc3 {[%clk 0:02:52.2]} 7... Qd8 {[%clk 0:02:52.8]} 8. Bb5 {[%clk
0:02:35.4]} 8... a6 {[%clk 0:02:49.7]} 9. Ba4 {[%clk 0:02:29.2]} 9... b5 {[%clk
0:02:46.6]} 10. Bb3 {[%clk 0:02:28.8]} 10... Bg4 {[%clk 0:02:45.4]} 11. Bxf7+
{[%clk 0:02:24.7]} 11... Kxf7 {[%clk 0:02:41.4]} 12. Ng5+ {[%clk 0:02:24.5]}
12... Ke8 {[%clk 0:02:37.2]} 13. Qxg4 {[%clk 0:02:25.4]} 13... Qxd4 {[%clk
0:02:30]} 14. Qf3 {[%clk 0:01:43.7]} 14... Qf6 {[%clk 0:02:10.5]} 15. Bf4 {[%clk
0:01:42.7]} 15... Rc8 {[%clk 0:01:53.3]} 16. Nd5 {[%clk 0:01:28.2]} 16... Qxb2
{[%clk 0:01:33]} 17. O-O {[%clk 0:01:26.8]} 17... Nf6 {[%clk 0:01:31.3]} 18.
Nc7+ {[%clk 0:01:24.8]} 18... Rxc7 {[%clk 0:01:22.1]} 19. Bxc7 {[%clk
0:01:25.7]} 19... Bg7 {[%clk 0:01:18.9]} 20. Qxc6+ {[%clk 0:01:24.4]} 20... Kf8
{[%clk 0:00:58.5]} 21. Qe6 {[%clk 0:01:23.4]} 1-0

[Event "*** Titled Tuesday Blitz"]
[Site "Chess.com"]
[Date "2020.05.19"]
[Round "2"]
[White "Mbneu"]
[Black "TigranMukhutdinov"]
[Result "0-1"]
[WhiteElo "2236"]
[BlackElo "2453"]
[TimeControl "180+1"]
[EndTime "12:16:13 PDT"]
[Termination "TigranMukhutdinov won by resignation"]

1. d4 {[%clk 0:02:57.1]} 1... Nf6 {[%clk 0:02:58.5]} 2. c4 {[%clk 0:02:56.2]}
2... g6 {[%clk 0:02:58.8]} 3. Nc3 {[%clk 0:02:55.8]} 3... d5 {[%clk 0:02:59.2]}
4. cxd5 {[%clk 0:02:56.7]} 4... Nxd5 {[%clk 0:02:59.7]} 5. g3 {[%clk 0:02:57.1]}
5... Bg7 {[%clk 0:02:58.9]} 6. Bg2 {[%clk 0:02:57.6]} 6... c6 {[%clk 0:02:55.5]}
7. e4 {[%clk 0:02:55.6]} 7... Nb6 {[%clk 0:02:51.4]} 8. Nge2 {[%clk 0:02:51]}
8... O-O {[%clk 0:02:50.6]} 9. O-O {[%clk 0:02:50.2]} 9... e5 {[%clk 0:02:51.2]}
10. Be3 {[%clk 0:02:46.5]} 10... Nc4 {[%clk 0:02:49]} 11. Qc2 {[%clk 0:02:09.9]}
11... Nxe3 {[%clk 0:02:45.3]} 12. fxe3 {[%clk 0:02:09.2]} 12... exd4 {[%clk
0:02:33.8]} 13. exd4 {[%clk 0:02:08]} 13... Bxd4+ {[%clk 0:02:33.3]} 14. Nxd4
{[%clk 0:02:08.1]} 14... Qxd4+ {[%clk 0:02:32.7]} 15. Kh1 {[%clk 0:02:08.7]}
15... Nd7 {[%clk 0:02:28.4]} 16. Rf4 {[%clk 0:01:51.7]} 16... Ne5 {[%clk
0:02:25.4]} 17. Rd1 {[%clk 0:01:50]} 17... Qc5 {[%clk 0:02:25.1]} 18. Qe2 {[%clk
0:01:46.8]} 18... h5 {[%clk 0:02:17.8]} 19. h3 {[%clk 0:01:42.8]} 19... Be6
{[%clk 0:02:15]} 20. g4 {[%clk 0:01:42.2]} 20... hxg4 {[%clk 0:02:11]} 21. hxg4
{[%clk 0:01:41.3]} 21... Rad8 {[%clk 0:02:10.8]} 22. Rxd8 {[%clk 0:01:32]} 22...
Rxd8 {[%clk 0:02:11.7]} 23. g5 {[%clk 0:01:29.8]} 23... Kg7 {[%clk 0:02:06.3]}
24. Rh4 {[%clk 0:01:28.7]} 24... Bg4 {[%clk 0:02:00.2]} 25. Qe1 {[%clk
0:01:22.4]} 25... Nf3 {[%clk 0:01:41.9]} 26. Qf1 {[%clk 0:01:04.9]} 26... Qxg5
{[%clk 0:01:29.7]} 0-1

[Event "*** Titled Tuesday Blitz"]
[Site "Chess.com"]
[Date "2020.05.19"]
[Round "2"]
[White "svilson23"]
[Black "Meri-Arabidze"]
[Result "0-1"]
[WhiteElo "2230"]
[BlackElo "2604"]
[TimeControl "180+1"]
[EndTime "12:16:14 PDT"]
[Termination "Meri-Arabidze won by resignation"]

1. d4 {[%clk 0:03:00.9]} 1... d5 {[%clk 0:03:00]} 2. Bg5 {[%clk 0:03:00.2]} 2...
Nf6 {[%clk 0:02:58.8]} 3. Bxf6 {[%clk 0:02:57.7]} 3... exf6 {[%clk 0:02:58.7]}
4. e3 {[%clk 0:02:57]} 4... Bd6 {[%clk 0:02:58.7]} 5. g3 {[%clk 0:02:42.5]} 5...
O-O {[%clk 0:02:58.1]} 6. Bg2 {[%clk 0:02:42.2]} 6... c6 {[%clk 0:02:57.3]} 7.
Ne2 {[%clk 0:02:36.5]} 7... Bg4 {[%clk 0:02:56.7]} 8. Qd3 {[%clk 0:02:32.6]}
8... Qd7 {[%clk 0:02:55.1]} 9. h3 {[%clk 0:01:54.6]} 9... Bf5 {[%clk 0:02:54]}
10. Qd2 {[%clk 0:01:53.6]} 10... Na6 {[%clk 0:02:53.9]} 11. O-O {[%clk
0:01:43.7]} 11... Bxh3 {[%clk 0:02:52.6]} 12. b3 {[%clk 0:01:25.2]} 12... Nc7
{[%clk 0:02:50.4]} 13. c4 {[%clk 0:01:23.2]} 13... Bxg2 {[%clk 0:02:44.6]} 14.
Kxg2 {[%clk 0:01:21]} 14... h6 {[%clk 0:02:39.9]} 15. c5 {[%clk 0:01:20.1]}
15... Be7 {[%clk 0:02:39.4]} 16. b4 {[%clk 0:01:20.4]} 16... Ne6 {[%clk
0:02:38.7]} 17. Nbc3 {[%clk 0:01:18.8]} 17... Ng5 {[%clk 0:02:38.7]} 18. Nf4
{[%clk 0:01:14.5]} 18... Bd8 {[%clk 0:02:38.7]} 19. b5 {[%clk 0:01:08]} 19...
Bc7 {[%clk 0:02:37.9]} 20. Rh1 {[%clk 0:01:01.2]} 20... Rfe8 {[%clk 0:02:36.7]}
21. a4 {[%clk 0:00:57.7]} 21... Ba5 {[%clk 0:02:31.6]} 22. Qc2 {[%clk
0:00:50.6]} 22... Qg4 {[%clk 0:02:31]} 23. Rh4 {[%clk 0:00:45.5]} 23... Qf3+
{[%clk 0:02:26.6]} 24. Kg1 {[%clk 0:00:45.7]} 24... Bxc3 {[%clk 0:02:13.5]} 25.
Qxc3 {[%clk 0:00:45.5]} 25... Ne4 {[%clk 0:02:14.4]} 26. Qe1 {[%clk 0:00:39.9]}
26... g5 {[%clk 0:02:11.9]} 27. Rxh6 {[%clk 0:00:32]} 27... gxf4 {[%clk
0:02:11.6]} 28. gxf4 {[%clk 0:00:20.2]} 28... Kg7 {[%clk 0:02:06]} 0-1